bitfinex-derivatives/quotes_SOLF0:USTF0_20240927
["timestamp","ask_amount","ask_price","bid_price","bid_amount"]
[1727401411484,13.14507742,154.88,154.84,6.458]
[1727401411685,9.89,154.87,154.8,6.458]
[1727401411889,1.301,154.96,154.85,6.30090512]
[1727401412090,9.89,154.87,154.82,6.458]
[1727401412287,13.07391631,154.87,154.84,6.458]
[1727401412594,1.301,154.96,154.85,6.30060238]
[1727401412794,9.89,154.9,154.84,16.348]
[1727401413094,13.17949796,154.9,154.85,6.30082231]
[1727401413289,13.17949796,154.9,154.84,16.348]
[1727401413490,13.17949796,154.9,154.85,6.30098176]
[1727401413796,13.17949796,154.9,154.84,19.5761]
[1727401413994,3.28949796,154.9,154.85,6.30095716]
[1727401414195,9.89,154.89,154.84,19.5761]
[1727401414496,3.2970341,154.89,154.85,6.30077709]
[1727401414696,3.2273,154.89,154.84,19.5761]
[1727401414897,6.51981408,154.89,154.85,6.3013511]
[1727401415090,6.51981408,154.89,154.84,19.5761]
[1727401415392,6.51981408,154.89,154.85,6.3013511]
[1727401415593,6.51981408,154.89,154.84,19.5761]
[1727401416090,6.51981408,154.89,154.85,6.3019118]
[1727401416296,6.51981408,154.89,154.84,9.6861]
[1727401416597,6.51981408,154.89,154.85,6.30249368]
[1727401416895,3.2275,154.88,154.84,9.6861]
[1727401417097,3.2275,154.88,154.85,6.30249244]
[1727401417298,3.2275,154.88,154.84,9.6861]
[1727401417500,3.2275,154.88,154.85,6.30318468]
[1727401417796,3.2275,154.88,154.84,9.6861]
[1727401417998,3.2275,154.88,154.85,6.30318736]
[1727401418199,3.2275,154.88,154.84,9.6861]
[1727401418697,3.2275,154.88,154.85,6.30393205]
[1727401418893,3.2275,154.88,154.86,1.73453205]
[1727401419094,98.53514512,154.79,154.65,15.49]
[1727401419401,15.49,154.76,154.65,15.49]
[1727401419698,15.49,154.74,154.62,21.37763074]
[1727401420194,3.2312,154.7,154.62,18.2005]
[1727401420601,15.49,154.71,154.62,18.2005]
[1727401421199,15.49,154.71,154.62,2.7105]
[1727401421499,15.49,154.74,154.62,18.2005]
[1727401421698,7.59055203,154.73,154.62,18.2005]
[1727401421905,15.49,154.76,154.65,15.49]
[1727401422101,4.36076788,154.75,154.67,15.49]
[1727401422399,3.2315,154.69,154.62,15.49]
[1727401422599,15.49,154.72,154.63,3.9538]
[1727401422899,15.49,154.74,154.64,15.49]
[1727401423203,4.35615097,154.73,154.67,3.2318]
[1727401423395,15.49,154.74,154.67,3.2318]
[1727401423594,15.49,154.74,154.64,15.49]
[1727401424607,15.49,154.76,154.69,3.2314]
[1727401424905,15.49,154.76,154.7,1.3063]
[1727401426201,18.7206,154.74,154.7,1.3063]
[1727401426498,15.49,154.74,154.7,1.3063]
[1727401426705,15.49,154.74,154.64,15.49]
[1727401426906,3.2308,154.72,154.66,3.2319]
[1727401428505,18.68443773,154.74,154.65,1.2624]
[1727401428698,15.49,154.74,154.65,1.2624]
[1727401428902,3.231,154.72,154.65,1.2624]
[1727401429103,18.6784141,154.74,154.65,1.2624]
[1727401429801,15.49,154.74,154.65,1.2624]
[1727401430706,3.2308,154.73,154.67,3.2317]
[1727401431817,3.2308,154.72,154.67,3.2317]
[1727401433511,3.2306,154.73,154.68,3.2314]
[1727401433712,15.49,154.74,154.65,1.2624]
[1727401434213,3.231,154.71,154.66,3.2319]
[1727401436509,3.2312,154.7,154.65,4.4946]
[1727401437011,3.2312,154.71,154.65,1.2624]
[1727401437706,3.2312,154.71,154.66,3.232]
[1727401438510,18.76136163,154.7,154.65,1.2624]
[1727401439513,3.2315,154.69,154.65,1.2624]
[1727401440523,15.49,154.7,154.65,1.2624]
[1727401440718,15.49,154.72,154.65,1.2624]
[1727401441216,18.80251636,154.72,154.65,1.2624]
[1727401441416,3.2313,154.7,154.66,3.232]
[1727401442520,3.2316,154.69,154.65,1.2624]
[1727401443120,3.2317,154.68,154.65,1.2624]
[1727401443520,15.49,154.7,154.65,1.2624]
[1727401443521,3.232,154.67,154.65,1.2624]
[1727401444218,3.2317,154.68,154.65,1.2624]
[1727401446422,3.2315,154.69,154.65,4.4946]
[1727401447022,18.80251636,154.72,154.63,2.738]
[1727401447423,3.2318,154.68,154.64,3.2324]
[1727401448924,3.2314,154.69,154.65,3.2322]
[1727401452022,3.2316,154.68,154.64,3.2324]
[1727401452422,15.49,154.7,154.63,1.3774]
[1727401452629,15.49,154.67,154.63,4.61]
[1727401452829,15.49,154.67,154.63,1.3774]
[1727401453030,15.49,154.67,154.64,3.2324]
[1727401455334,15.49,154.67,154.63,1.3774]
[1727401455836,15.49,154.67,154.65,3.2322]
[1727401456438,9.93,154.67,154.65,3.2322]
[1727401458537,9.93,154.66,154.64,3.2324]
[1727401458934,9.93,154.66,154.52,6.458]
[1727401459141,9.93,154.63,154.56,12.4845]
[1727401459540,9.93,154.63,154.59,3.2334]
[1727401459941,6.4597,154.77,154.58,9.93]
[1727401460241,9.93,154.64,154.61,3.233]
[1727401460442,18.7522,154.66,154.61,3.233]
[1727401460840,3.2323,154.65,154.61,3.233]
[1727401461842,15.52,154.66,154.56,18.0745]
[1727401462044,15.52,154.68,154.58,15.52]
[1727401462247,15.52,154.68,154.59,2.49107615]
[1727401462448,15.52,154.68,154.59,1.3032]
[1727401463336,15.52,154.68,154.6,3.1865311]
[1727401463740,15.52,154.68,154.59,1.3032]
[1727401465442,15.52,154.66,154.59,1.3032]
[1727401465641,18.7522,154.66,154.59,1.3032]
[1727401465836,15.52,154.66,154.59,1.3032]
[1727401466242,15.52,154.68,154.6,3.27974495]
[1727401466442,18.73992509,154.68,154.6,3.27974495]
[1727401466638,3.2319,154.67,154.63,3.2325]
[1727401467649,3.232,154.66,154.63,3.2325]
[1727401467844,18.73992509,154.68,154.63,3.2325]
[1727401468045,3.2319,154.67,154.63,3.2325]
[1727401468243,15.52,154.68,154.64,3.2324]
[1727401468844,15.52,154.68,154.6,3.16430879]
[1727401468845,15.52,154.7,154.66,3.232]
[1727401469150,15.52,154.7,154.6,18.68430879]
[1727401469838,3.2316,154.68,154.65,3.2322]
[1727401470450,3.232,154.67,154.6,15.52]
[1727401471250,3.232,154.67,154.59,1.3032]
[1727401471750,3.232,154.67,154.64,3.2324]
[1727401473850,3.232,154.67,154.63,3.2325]
[1727401474250,3.232,154.67,154.59,1.3032]
[1727401475845,3.232,154.67,154.64,3.2324]
[1727401476450,3.2319,154.67,154.6,3.29418671]
[1727401476652,15.52,154.7,154.6,3.19979]
[1727401477155,3.2315,154.69,154.66,3.232]
[1727401477357,15.52,154.7,154.6,18.71979]
[1727401477553,15.52,154.73,154.69,3.2313]
[1727401477853,15.52,154.75,154.64,15.52]
[1727401478059,3.2309,154.72,154.68,3.2314]
[1727401478351,15.52,154.75,154.68,3.2314]
[1727401478657,15.52,154.72,154.63,2.5442]
[1727401478856,3.2312,154.7,154.67,3.2317]
[1727401479353,15.52,154.72,154.63,2.5442]
[1727401480753,3.2311,154.71,154.67,3.2317]
[1727401482359,13.1611,154.71,154.67,3.2317]
[1727401483257,103.4067,154.84,154.63,2.5442]
[1727401483258,25.8243,154.9,154.7,9.93]
[1727401483450,9.93,154.78,154.72,9.93]
[1727401483854,13.1598,154.77,154.7,9.93]
[1727401484162,9.93,154.75,154.68,1.2894]
[1727401484352,15.52,154.75,154.68,1.2894]
[1727401484557,15.52,154.75,154.69,3.2312]
[1727401485057,3.2306,154.73,154.69,3.2312]
[1727401485562,3.2308,154.72,154.68,3.2316]
[1727401487466,18.78219903,154.75,154.67,3.2318]
[1727401487963,3.2309,154.72,154.68,3.2316]
[1727401489460,15.52,154.73,154.67,3.2318]
[1727401489660,15.52,154.73,154.64,16.8094]
[1727401490655,3.2309,154.72,154.68,3.2315]
[1727401490963,3.2309,154.72,154.64,1.2894]
[1727401490964,3.2309,154.72,154.65,15.52]
[1727401491359,15.52,154.78,154.67,15.52]
[1727401491565,15.52,154.76,154.64,16.8094]
[1727401491964,3.2308,154.72,154.64,16.8094]
[1727401492161,15.52,154.76,154.64,16.8094]
[1727401492664,3.231,154.72,154.67,3.2317]
[1727401492861,3.231,154.72,154.64,16.8094]
[1727401493363,18.71907878,154.73,154.64,1.2894]
[1727401493563,15.52,154.73,154.64,1.2894]
[1727401493962,3.231,154.71,154.67,3.2317]
[1727401495257,3.2309,154.72,154.68,3.2315]
[1727401497465,3.231,154.71,154.67,3.2318]
[1727401498469,18.67900546,154.73,154.66,3.232]
[1727401498665,18.67900546,154.73,154.64,1.2894]
[1727401498967,18.67900546,154.73,154.67,3.2317]
[1727401498968,3.2311,154.71,154.67,3.2317]
[1727401500559,3.2311,154.71,154.63,2.5442]
[1727401500560,15.52,154.71,154.63,2.5442]
[1727401500969,3.2309,154.72,154.63,2.5442]
[1727401501668,15.52,154.75,154.7,3.231]
[1727401501863,15.52,154.75,154.64,15.52]
[1727401501864,15.52,154.75,154.65,1.2965]
[1727401502463,3.2308,154.72,154.68,3.2316]
[1727401502665,15.52,154.71,154.63,2.5442]
[1727401503071,3.2316,154.68,154.64,3.2324]
[1727401503668,18.76991568,154.69,154.63,5.7768]
[1727401504769,3.2319,154.67,154.63,5.7768]
[1727401505172,15.52,154.67,154.62,3.2328]
[1727401505376,3.2321,154.66,154.61,1.2965]
[1727401505673,15.52,154.67,154.58,2.6131]
[1727401505868,3.2325,154.64,154.58,2.6131]
[1727401506071,15.52,154.67,154.58,2.6131]
[1727401506468,15.52,154.65,154.58,2.6131]
[1727401507879,15.52,154.65,154.56,59.94017556]
[1727401508477,15.52,154.63,154.56,59.94017556]
[1727401509180,15.52,154.63,154.42,6.458]
[1727401509375,15.52,154.6,154.51,2.5968]
[1727401509679,3.2335,154.59,154.55,3.2342]
[1727401510272,15.52,154.6,154.51,3.976]
[1727401510972,18.7534,154.6,154.56,3.2341]
[1727401511175,15.52,154.62,154.52,15.52]
[1727401511780,18.7529,154.62,154.58,3.2337]
[1727401515478,3.2334,154.6,154.52,15.52]
[1727401515677,15.52,154.62,154.52,15.52]
[1727401516380,3.2333,154.61,154.52,15.52]
[1727401516781,15.52,154.62,154.52,15.52]
[1727401516976,3.2333,154.6,154.56,3.234]
[1727401518574,15.52,154.62,154.52,15.52]
[1727401518575,3.2336,154.59,154.52,15.52]
[1727401519182,3.2336,154.59,154.56,3.2341]
[1727401519476,3.2336,154.59,154.52,15.52]
[1727401519477,15.52,154.62,154.52,15.52]
[1727401519684,15.52,154.62,154.57,3.2339]
[1727401519883,15.52,154.62,154.51,19.496]
[1727401520274,3.2335,154.59,154.51,19.496]
[1727401520879,3.2335,154.59,154.55,3.2343]
[1727401521183,3.2338,154.58,154.55,3.2343]
[1727401521483,15.52,154.6,154.55,3.2343]
[1727401521885,15.52,154.62,154.51,19.496]
[1727401522393,3.2333,154.6,154.56,3.234]
[1727401522581,3.2333,154.6,154.51,19.496]
[1727401523286,3.2332,154.61,154.57,3.2339]
[1727401523586,15.52,154.62,154.57,3.2339]
[1727401524784,3.2333,154.6,154.57,3.2339]
[1727401525484,3.2333,154.6,154.56,3.2339]
[1727401526383,9.94,154.59,154.56,3.2339]
[1727401527287,9.94,154.58,154.55,3.2343]
[1727401527879,13.1738,154.58,154.54,3.2345]
[1727401528188,9.94,154.57,154.54,3.2345]
[1727401528383,13.174,154.57,154.54,3.2345]
[1727401528886,9.94,154.57,154.51,13.916]
[1727401529291,9.94,154.57,154.54,3.2344]
[1727401530188,9.94,154.57,154.51,13.916]
[1727401530887,13.174,154.57,154.53,3.2346]
[1727401531091,9.94,154.55,154.51,3.976]
[1727401531784,9.94,154.57,154.51,13.916]
[1727401531990,13.174,154.57,154.53,3.2346]
[1727401532380,9.94,154.58,154.51,3.976]
[1727401532587,9.94,154.57,154.52,9.94]
[1727401532987,9.94,154.57,154.56,3.2341]
[1727401533484,9.94,154.57,154.52,9.94]
[1727401533784,9.94,154.57,154.54,3.2344]
[1727401533991,9.94,154.57,154.52,9.94]
[1727401535187,9.94,154.56,154.44,12.931]
[1727401535392,9.94,154.56,154.5,9.94]
[1727401536287,9.94,154.56,154.51,2.6286]
[1727401537791,9.94,154.56,154.54,3.2345]
[1727401538391,9.94,154.56,154.45,1.3389]
[1727401538589,9.94,154.56,154.5,9.94]
[1727401538990,13.1742,154.56,154.53,3.2346]
[1727401539190,9.94,154.56,154.51,9.94]
[1727401540589,9.94,154.56,154.53,3.2347]
[1727401541089,13.1742,154.56,154.53,3.2347]
[1727401541590,9.94,154.54,154.46,2.6518]
[1727401541791,9.94,154.54,154.48,9.94]
[1727401542294,9.94,154.54,154.52,3.2348]
[1727401542591,9.94,154.54,154.49,9.94]
[1727401542792,13.1742,154.56,154.49,9.94]
[1727401542989,13.1742,154.56,154.51,9.94]
[1727401543194,9.94,154.56,154.51,9.94]
[1727401543387,71.59142436,154.64,154.54,9.94]
[1727401543692,9.94,154.59,154.54,9.94]
[1727401543888,3.2337,154.58,154.55,3.2343]
[1727401544088,9.94,154.58,154.52,9.94]
[1727401544986,13.1738,154.58,154.55,3.2343]
[1727401545488,13.1741,154.56,154.53,3.2346]
[1727401546485,9.94,154.56,154.53,3.2346]
[1727401547088,9.94,154.55,154.52,3.235]
[1727401547391,9.94,154.55,154.49,9.94]
[1727401547594,9.94,154.55,154.53,3.2346]
[1727401548995,6.50893315,154.54,154.51,3.235]
[1727401549597,16.44893315,154.54,154.51,3.235]
[1727401549802,3.2348,154.53,154.5,3.2353]
[1727401550595,9.94,154.52,154.5,3.2353]
[1727401553602,9.94,154.51,154.49,3.2355]
[1727401555304,9.94,154.51,154.46,13.10935564]
[1727401555305,6.40286123,154.53,154.5,3.2354]
[1727401555504,13.1748,154.53,154.5,3.2354]
[1727401555807,9.94,154.53,154.48,9.94]
[1727401556207,9.94,154.53,154.51,3.235]
[1727401558506,9.94,154.52,154.49,3.2355]
[1727401558906,3.235,154.53,154.46,13.23491312]
[1727401559104,9.94,154.52,154.46,13.23491312]
[1727401560207,9.94,154.52,154.5,3.2352]
[1727401560805,9.94,154.52,154.51,3.2352]
[1727401561414,9.94,154.52,154.5,3.2352]
[1727401561615,9.94,154.52,154.48,9.94]
[1727401562515,9.94,154.53,154.51,3.235]
[1727401562717,71.59142436,154.64,154.5,9.94]
[1727401562918,9.94,154.55,154.5,9.94]
[1727401564111,9.94,154.55,154.54,3.2345]
[1727401565418,9.94,154.55,154.53,3.2346]
[1727401565622,9.94,154.55,154.51,9.94]
[1727401566818,9.94,154.55,154.54,3.2345]
[1727401567514,9.94,154.55,154.47,3.2294316]
[1727401567715,9.94,154.55,154.5,9.94]
[1727401568722,71.59142436,154.64,154.54,9.94]
[1727401568916,71.59142436,154.64,154.56,9.94]
[1727401569120,9.94,154.61,154.56,9.94]
[1727401569330,13.24388101,154.61,154.56,9.94]
[1727401569720,9.94,154.6,154.57,3.2338]
[1727401570424,9.94,154.6,154.58,3.2337]
[1727401570623,9.94,154.6,154.55,11.2566]
[1727401571323,9.94,154.6,154.55,1.3166]
[1727401571621,9.94,154.6,154.56,3.234]
[1727401571823,13.1734,154.6,154.55,1.3166]
[1727401572223,9.94,154.6,154.58,3.2335]
[1727401573526,9.94,154.59,154.51,3.19553053]
[1727401573721,9.94,154.59,154.53,9.94]
[1727401574327,13.1736,154.59,154.53,9.94]
[1727401574627,9.94,154.59,154.52,11.3365]
[1727401575520,9.94,154.59,154.54,3.2345]
[1727401575717,9.94,154.59,154.52,11.3365]
[1727401575921,3.2339,154.58,154.55,3.2343]
[1727401576319,9.94,154.59,154.52,11.3365]
[1727401576524,9.94,154.59,154.54,9.94]
[1727401577527,9.94,154.59,154.52,1.3965]
[1727401577724,9.94,154.58,154.53,9.94]
[1727401578419,13.1738,154.58,154.55,3.2343]
[1727401579119,9.94,154.56,154.54,3.2345]
[1727401580831,13.1742,154.56,154.53,3.2347]
[1727401581431,3.2344,154.55,154.52,3.235]
[1727401581732,9.94,154.57,154.52,9.94]
[1727401582534,3.24456193,154.58,154.52,9.94]
[1727401582827,71.59142436,154.64,154.53,9.94]
[1727401583028,9.94,154.6,154.54,9.94]
[1727401584029,13.1734,154.6,154.54,9.94]
[1727401584535,13.1734,154.6,154.56,3.2339]
[1727401584834,13.1736,154.59,154.56,3.2339]
[1727401585037,71.59142436,154.64,154.57,3.2339]
[1727401585230,9.94,154.59,154.57,3.2339]
[1727401587035,3.2331,154.61,154.58,3.2337]
[1727401587230,71.59142436,154.64,154.55,9.94]
[1727401587430,9.94,154.6,154.55,9.94]
[1727401588234,9.94,154.6,154.58,3.2337]
[1727401588630,9.94,154.6,154.55,9.94]
[1727401588631,71.59142436,154.64,154.5,1.38]
[1727401588828,71.59142436,154.64,154.58,9.94]
[1727401589028,9.94,154.63,154.58,9.94]
[1727401589237,9.94,154.62,154.58,9.94]
[1727401589834,9.94,154.62,154.59,3.2333]
[1727401590932,13.1729,154.62,154.59,3.2333]
[1727401591535,13.1732,154.61,154.56,9.94]
[1727401591741,9.94,154.61,154.56,9.94]
[1727401592534,9.94,154.61,154.58,3.2336]
[1727401593536,9.94,154.61,154.57,9.94]
[1727401594340,9.94,154.61,154.58,3.2336]
[1727401594538,13.13629404,154.61,154.56,9.94]
[1727401594741,16.36949404,154.61,154.57,3.2337]
[1727401595540,9.94,154.61,154.58,3.2336]
[1727401596141,13.1731,154.61,154.58,3.2336]
[1727401596641,9.94,154.61,154.58,3.2336]
[1727401597531,16.34394438,154.61,154.57,3.2338]
[1727401598940,9.94,154.61,154.57,9.94]
[1727401599741,9.94,154.61,154.58,3.2336]
[1727401600040,13.1731,154.61,154.58,3.2336]
[1727401600442,9.94,154.61,154.57,3.2339]
[1727401600740,3.2334,154.6,154.57,3.2339]
[1727401601136,3.2334,154.6,154.56,3.234]
[1727401601535,13.24140337,154.61,154.56,3.234]
[1727401602140,9.94,154.59,154.56,3.234]
[1727401602738,13.1735,154.59,154.56,3.234]
[1727401603441,3.2337,154.58,154.55,3.2343]
[1727401603640,9.94,154.59,154.55,3.2343]
[1727401603847,9.94,154.57,154.5,1.38]
[1727401604052,13.1739,154.57,154.51,9.94]
[1727401604552,3.2342,154.56,154.53,3.2346]
[1727401604944,9.94,154.57,154.53,3.2346]
[1727401605152,9.94,154.57,154.51,9.94]
[1727401605153,9.94,154.55,154.51,3.235]
[1727401605353,13.19405688,154.55,154.51,3.235]
[1727401605554,13.1747,154.54,154.5,1.38]
[1727401605759,13.1747,154.54,154.5,4.6152]
[1727401605958,13.1747,154.54,154.5,1.38]
[1727401606559,13.1747,154.54,154.5,4.6153]
[1727401606860,3.25405688,154.55,154.5,4.6153]
[1727401606861,13.1744,154.55,154.5,11.32]
[1727401607058,9.94,154.55,154.5,11.32]
[1727401607656,74.77528238,154.64,154.5,11.32]
[1727401607862,9.94,154.57,154.52,9.94]
[1727401608076,13.1741,154.57,154.52,9.94]
[1727401608261,9.94,154.57,154.53,3.2347]
[1727401608460,9.94,154.56,154.5,1.38]
[1727401608763,13.1742,154.56,154.5,11.32]
[1727401608958,13.1742,154.56,154.5,1.38]
[1727401608959,3.1962449,154.55,154.5,1.38]
[1727401609163,9.94,154.54,154.5,1.38]
[1727401609459,9.94,154.54,154.47,1.2898]
[1727401609765,9.94,154.51,154.47,1.2898]
[1727401609963,9.94,154.51,154.47,4.44431255]
[1727401611462,9.94,154.51,154.47,1.2898]
[1727401611963,9.94,154.51,154.47,4.44925061]
[1727401612561,9.94,154.51,154.48,3.2358]
[1727401613564,13.1752,154.51,154.48,3.2357]
[1727401613764,9.94,154.5,154.48,3.2357]
[1727401614066,3.2356,154.49,154.46,3.2361]
[1727401614258,3.22901352,154.52,154.45,4.50275481]
[1727401614464,9.94,154.5,154.48,3.2357]
[1727401615261,13.1757,154.49,154.37,6.474]
[1727401615465,9.94,154.47,154.38,3.9829]
[1727401615657,9.94,154.47,154.41,9.94]
[1727401615970,9.94,154.47,154.44,3.2365]
[1727401615971,13.18334679,154.47,154.44,3.2365]
[1727401616165,9.94,154.47,154.44,3.2365]
[1727401616559,9.94,154.47,154.38,2.6933]
[1727401616759,12.09611125,154.57,154.43,9.94]
[1727401617066,9.94,154.48,154.43,9.94]
[1727401617468,13.1756,154.5,154.45,9.94]
[1727401617868,3.2356,154.5,154.45,9.94]
[1727401618069,13.1756,154.5,154.45,9.94]
[1727401618764,13.1756,154.5,154.47,3.236]
[1727401619074,13.1756,154.5,154.44,9.94]
[1727401619471,13.1756,154.5,154.46,3.2362]
[1727401620071,9.94,154.49,154.46,3.2362]
[1727401621167,13.1757,154.49,154.45,3.2364]
[1727401621572,9.94,154.49,154.45,3.2364]
[1727401622072,13.1757,154.49,154.45,3.2364]
[1727401622271,13.1757,154.49,154.46,3.2362]
[1727401622466,9.94,154.48,154.42,9.94]
[1727401622962,9.94,154.48,154.45,3.2363]
[1727401623567,9.94,154.46,154.41,9.94]
[1727401624069,9.94,154.46,154.38,2.6933]
[1727401624070,9.94,154.44,154.39,9.94]
[1727401625472,9.94,154.46,154.39,9.94]
[1727401625674,9.94,154.46,154.41,9.94]
[1727401626371,9.94,154.46,154.44,3.2365]
[1727401627170,9.94,154.46,154.45,3.2364]
[1727401627472,9.94,154.46,154.38,2.6806]
[1727401627673,9.94,154.46,154.4,9.94]
[1727401628177,9.94,154.44,154.38,2.6806]
[1727401628375,9.94,154.44,154.39,9.94]
[1727401628673,9.94,154.44,154.38,12.6206]
[1727401628868,3.20393427,154.45,154.38,2.6806]
[1727401629075,9.94,154.39,154.27,77.66]
[1727401629267,9.94,154.38,154.37,3.2381]
[1727401629465,9.94,154.38,154.33,9.94]
[1727401630377,9.94,154.36,154.31,12.5696]
[1727401630971,3.21396881,154.4,154.32,9.94]
[1727401631176,9.94,154.38,154.34,3.2385]
[1727401631875,9.94,154.37,154.33,3.2389]
[1727401632173,9.94,154.37,154.31,12.5696]
[1727401632572,9.94,154.37,154.31,2.6296]
[1727401632766,9.94,154.35,154.31,2.6296]
[1727401633671,9.94,154.35,154.34,3.2387]
[1727401634173,9.94,154.37,154.35,3.2385]
[1727401634775,9.94,154.39,154.33,9.94]
[1727401634967,9.94,154.39,154.31,2.6296]
[1727401635171,9.94,154.39,154.34,9.94]
[1727401635774,9.94,154.39,154.36,3.2382]
[1727401636577,3.26593283,154.4,154.37,3.2379]
[1727401636778,9.94,154.39,154.37,3.2379]
[1727401637175,71.68258763,154.45,154.36,9.94]
[1727401637471,9.94,154.43,154.38,9.94]
[1727401639468,9.94,154.43,154.41,3.2371]
[1727401640579,9.94,154.43,154.42,3.2371]
[1727401642181,9.94,154.43,154.41,3.2372]
[1727401642880,6.50959353,154.45,154.37,2.6488]
[1727401642881,9.94,154.42,154.37,2.6488]
[1727401643075,9.94,154.4,154.37,2.6488]
[1727401643282,9.94,154.4,154.18,35.24201806]
[1727401643283,9.94,154.4,154.34,9.94]
[1727401643875,3.2375,154.41,154.34,9.94]
[1727401644081,9.94,154.41,154.35,9.94]
[1727401645182,6.45706018,154.42,154.38,3.2378]
[1727401645383,9.94,154.41,154.38,3.2378]
[1727401645783,6.45706018,154.42,154.38,3.2378]
[1727401645981,9.94,154.4,154.38,3.2378]
[1727401646485,9.94,154.39,154.37,3.238]
[1727401646678,9.94,154.39,154.34,9.94]
[1727401647479,3.2375,154.4,154.3,6.474]
[1727401647680,9.94,154.39,154.33,9.94]
[1727401648885,9.94,154.39,154.37,3.2381]
[1727401651583,9.94,154.39,154.38,3.2379]
[1727401653181,9.94,154.39,154.3,6.474]
[1727401653377,3.21996018,154.42,154.3,6.474]
[1727401653378,9.94,154.36,154.3,6.474]
[1727401653593,9.94,154.36,154.31,9.94]
[1727401654377,9.94,154.38,154.35,3.2383]
[1727401655288,9.94,154.38,154.36,3.2383]
[1727401655479,9.94,154.38,154.32,9.94]
[1727401655681,9.94,154.39,154.34,9.94]
[1727401656082,9.94,154.39,154.37,3.238]
[1727401656785,9.94,154.39,154.38,3.2379]
[1727401656980,6.41514868,154.42,154.38,3.2379]
[1727401657181,9.94,154.4,154.34,9.94]
[1727401657380,9.94,154.4,154.38,3.2377]
[1727401657879,71.67203104,154.46,154.37,9.94]
[1727401658086,9.94,154.43,154.37,9.94]
[1727401659285,9.94,154.43,154.4,3.2374]
[1727401660992,3.2367,154.44,154.4,3.2374]
[1727401661291,9.94,154.42,154.4,3.2374]
[1727401661490,71.67203104,154.46,154.39,9.94]
[1727401661686,9.94,154.45,154.39,9.94]
[1727401661889,9.94,154.45,154.42,3.237]
[1727401664284,3.25492006,154.54,154.42,9.94]
[1727401664489,9.94,154.48,154.43,9.94]
[1727401664991,13.176,154.48,154.44,3.2366]
[1727401665193,9.94,154.46,154.44,3.2366]
[1727401668395,9.94,154.45,154.4,9.94]
[1727401668993,3.2363,154.46,154.43,3.2367]
[1727401669597,13.1761,154.47,154.43,3.2367]
[1727401671599,13.1761,154.47,154.44,3.2366]
[1727401677298,9.94,154.47,154.45,3.2364]
[1727401677606,3.30104928,154.52,154.46,9.94]
[1727401677799,9.94,154.51,154.46,9.94]
[1727401678103,13.1755,154.5,154.47,3.2359]
[1727401678895,16.44967989,154.5,154.47,3.2359]
[1727401679095,3.2356,154.49,154.44,13.9325]
[1727401679301,3.2356,154.49,154.46,3.2362]